[Event "*** Titled Tuesday Blitz"]
[Site "Chess.com"]
[Date "2021.02.16"]
[Round "2"]
[White "Alexander_Moskalenko"]
[Black "karenzadita"]
[Result "1-0"]
[WhiteElo "2767"]
[BlackElo "2424"]
[TimeControl "180+1"]
[EndTime "10:17:38 PST"]
[Termination "Alexander_Moskalenko won on time"]

1. e4 {[%clk 0:03:00.9]} 1... c5 {[%clk 0:02:57.3]} 2. Nc3 {[%clk 0:02:59.8]}
2... g6 {[%clk 0:02:57.1]} 3. f4 {[%clk 0:02:57.9]} 3... Bg7 {[%clk 0:02:55.7]}
4. Nf3 {[%clk 0:02:58.8]} 4... Nc6 {[%clk 0:02:54.6]} 5. Bc4 {[%clk 0:02:57.9]}
5... e6 {[%clk 0:02:54.2]} 6. O-O {[%clk 0:02:57.5]} 6... Nge7 {[%clk
0:02:54.5]} 7. Qe1 {[%clk 0:02:55.5]} 7... O-O {[%clk 0:02:52]} 8. d3 {[%clk
0:02:54.8]} 8... d5 {[%clk 0:02:51.2]} 9. Bb3 {[%clk 0:02:55.1]} 9... a6 {[%clk
0:02:41.7]} 10. Qh4 {[%clk 0:02:45.7]} 10... Na5 {[%clk 0:02:21.3]} 11. f5
{[%clk 0:02:45]} 11... Nxb3 {[%clk 0:02:13.5]} 12. axb3 {[%clk 0:02:44.5]} 12...
exf5 {[%clk 0:02:02.6]} 13. Bh6 {[%clk 0:02:37.6]} 13... fxe4 {[%clk 0:01:44.3]}
14. Ng5 {[%clk 0:02:37.2]} 14... Nf5 {[%clk 0:01:02.8]} 15. Rxf5 {[%clk
0:02:36.3]} 15... Bxf5 {[%clk 0:01:03.2]} 16. Bxg7 {[%clk 0:02:33.1]} 16... Kxg7
{[%clk 0:01:04.1]} 17. Qxh7+ {[%clk 0:02:13]} 17... Kf6 {[%clk 0:01:02.9]} 18.
dxe4 {[%clk 0:01:56.1]} 18... dxe4 {[%clk 0:00:15.1]} 19. Ngxe4+ {[%clk
0:01:41.6]} 19... Bxe4 {[%clk 0:00:07.2]} 20. Nxe4+ {[%clk 0:01:42.5]} 20... Ke5
{[%clk 0:00:06.4]} 21. Re1 {[%clk 0:01:30]} 21... Qd4+ {[%clk 0:00:06]} 22. Nf2+
{[%clk 0:01:25.5]} 22... Kf6 {[%clk 0:00:06.2]} 23. c3 {[%clk 0:01:25.6]} 23...
Qf4 {[%clk 0:00:04.5]} 24. Ne4+ {[%clk 0:01:23]} 24... Kf5 {[%clk 0:00:02]} 25.
Ng3+ {[%clk 0:01:21.3]} 25... Kf6 {[%clk 0:00:01.6]} 26. Rf1 {[%clk 0:01:21.4]}
1-0

[Event "*** Titled Tuesday Blitz"]
[Site "Chess.com"]
[Date "2021.02.16"]
[Round "2"]
[White "CroissantNeuf"]
[Black "tylityli"]
[Result "1-0"]
[WhiteElo "2447"]
[BlackElo "2225"]
[TimeControl "180+1"]
[EndTime "10:17:46 PST"]
[Termination "CroissantNeuf won by resignation"]

1. e4 {[%clk 0:03:00.9]} 1... e5 {[%clk 0:02:59.5]} 2. Nf3 {[%clk 0:03:00.8]}
2... Nc6 {[%clk 0:02:59.2]} 3. Nc3 {[%clk 0:03:01.3]} 3... Nf6 {[%clk
0:02:58.1]} 4. d4 {[%clk 0:03:01.8]} 4... exd4 {[%clk 0:02:57.2]} 5. Nxd4 {[%clk
0:03:02.4]} 5... Bb4 {[%clk 0:02:56.4]} 6. Nxc6 {[%clk 0:03:02.4]} 6... bxc6
{[%clk 0:02:56.2]} 7. Bd3 {[%clk 0:03:02.7]} 7... d5 {[%clk 0:02:55.6]} 8. exd5
{[%clk 0:03:03.3]} 8... cxd5 {[%clk 0:02:56.5]} 9. O-O {[%clk 0:03:03.4]} 9...
O-O {[%clk 0:02:55.6]} 10. h3 {[%clk 0:03:04]} 10... c6 {[%clk 0:02:55.4]} 11.
Qf3 {[%clk 0:03:04.1]} 11... h6 {[%clk 0:02:53.5]} 12. Bf4 {[%clk 0:03:03.7]}
12... Bd6 {[%clk 0:02:47.5]} 13. Rad1 {[%clk 0:03:00.1]} 13... a5 {[%clk
0:02:42.5]} 14. b3 {[%clk 0:02:45.2]} 14... Qc7 {[%clk 0:02:34.2]} 15. Bxh6
{[%clk 0:02:24.5]} 15... Be5 {[%clk 0:02:33.1]} 16. Bd2 {[%clk 0:02:16.5]} 16...
Be6 {[%clk 0:02:24]} 17. Rfe1 {[%clk 0:01:59.2]} 17... Bd4 {[%clk 0:02:21.4]}
18. Bf4 {[%clk 0:01:49.1]} 18... Qd7 {[%clk 0:02:11.6]} 19. Ne2 {[%clk
0:01:42.3]} 19... Bb6 {[%clk 0:02:09]} 20. Be5 {[%clk 0:01:36.3]} 20... Bd8
{[%clk 0:01:56.3]} 21. Nd4 {[%clk 0:01:26.2]} 21... c5 {[%clk 0:01:47.6]} 22.
Nf5 {[%clk 0:01:17.3]} 22... Bxf5 {[%clk 0:01:41.9]} 23. Bxf5 {[%clk 0:01:15.9]}
23... Qc6 {[%clk 0:01:42]} 24. c4 {[%clk 0:01:14]} 24... Ra6 {[%clk 0:01:13.3]}
25. cxd5 {[%clk 0:01:09.6]} 25... Qb5 {[%clk 0:01:11.4]} 26. Bd3 {[%clk
0:01:06.4]} 26... Qb6 {[%clk 0:01:11.5]} 27. Bxa6 {[%clk 0:01:04.8]} 27... Qxa6
{[%clk 0:01:12.4]} 28. d6 {[%clk 0:01:03.1]} 28... c4 {[%clk 0:01:10.1]} 29.
bxc4 {[%clk 0:00:58.4]} 29... Qxc4 {[%clk 0:01:11]} 30. d7 {[%clk 0:00:50.5]}
30... a4 {[%clk 0:01:09.5]} 31. Bxf6 {[%clk 0:00:48.9]} 31... Bxf6 {[%clk
0:01:05.6]} 32. Re8 {[%clk 0:00:46.1]} 32... Qc7 {[%clk 0:01:02.5]} 33. Rxf8+
{[%clk 0:00:41.2]} 33... Kxf8 {[%clk 0:01:01.4]} 34. Qxf6 {[%clk 0:00:38.8]} 1-0

[Event "*** Titled Tuesday Blitz"]
[Site "Chess.com"]
[Date "2021.02.16"]
[Round "2"]
[White "Bulldog167"]
[Black "KruHor"]
[Result "1-0"]
[WhiteElo "2873"]
[BlackElo "2537"]
[TimeControl "180+1"]
[EndTime "10:17:51 PST"]
[Termination "Bulldog167 won by resignation"]

1. d4 {[%clk 0:03:00.9]} 1... Nf6 {[%clk 0:02:01.1]} 2. c4 {[%clk 0:02:58.5]}
2... e6 {[%clk 0:01:59.9]} 3. Nf3 {[%clk 0:02:58.6]} 3... Bb4+ {[%clk 0:01:59]}
4. Bd2 {[%clk 0:02:57]} 4... Bxd2+ {[%clk 0:01:58.9]} 5. Qxd2 {[%clk 0:02:57.9]}
5... d6 {[%clk 0:01:58.3]} 6. Nc3 {[%clk 0:02:57.8]} 6... O-O {[%clk 0:01:57.9]}
7. g3 {[%clk 0:02:57.2]} 7... Qe7 {[%clk 0:01:57.6]} 8. Bg2 {[%clk 0:02:57.2]}
8... e5 {[%clk 0:01:57.5]} 9. e3 {[%clk 0:02:56.9]} 9... exd4 {[%clk 0:01:57]}
10. Nxd4 {[%clk 0:02:56.6]} 10... a6 {[%clk 0:01:56.2]} 11. O-O {[%clk
0:02:56.5]} 11... c5 {[%clk 0:01:54.7]} 12. Nde2 {[%clk 0:02:53.4]} 12... Be6
{[%clk 0:01:52.9]} 13. b3 {[%clk 0:02:52.7]} 13... Rd8 {[%clk 0:01:51.7]} 14.
Nf4 {[%clk 0:02:52.6]} 14... Nc6 {[%clk 0:01:50.1]} 15. Rfd1 {[%clk 0:02:51.1]}
15... Rac8 {[%clk 0:01:48.6]} 16. h3 {[%clk 0:02:32.8]} 16... h5 {[%clk
0:01:47.7]} 17. Qe2 {[%clk 0:02:32.3]} 17... h4 {[%clk 0:01:46.3]} 18. g4 {[%clk
0:02:32.6]} 18... Nh7 {[%clk 0:01:43.7]} 19. Ncd5 {[%clk 0:02:30.6]} 19... Bxd5
{[%clk 0:01:40.2]} 20. Nxd5 {[%clk 0:02:30.6]} 20... Qe6 {[%clk 0:01:38.3]} 21.
f4 {[%clk 0:02:28]} 21... Nf6 {[%clk 0:01:35.5]} 22. g5 {[%clk 0:02:11.8]} 22...
Nh7 {[%clk 0:01:24.7]} 23. Qg4 {[%clk 0:01:57.8]} 23... Re8 {[%clk 0:01:23.3]}
24. Qxh4 {[%clk 0:01:56.1]} 24... Nb4 {[%clk 0:01:21.4]} 25. Nxb4 {[%clk
0:01:49.8]} 25... Qxe3+ {[%clk 0:01:17.4]} 26. Qf2 {[%clk 0:01:50.4]} 26... cxb4
{[%clk 0:01:15.7]} 27. Qxe3 {[%clk 0:01:41]} 27... Rxe3 {[%clk 0:01:15]} 28.
Bxb7 {[%clk 0:01:41.6]} 28... Rc7 {[%clk 0:01:12.3]} 29. Bg2 {[%clk 0:01:40.8]}
29... Rd7 {[%clk 0:01:03.9]} 30. c5 {[%clk 0:01:39.6]} 30... Nf8 {[%clk
0:01:01.5]} 31. c6 {[%clk 0:01:39.2]} 31... Rc7 {[%clk 0:01:01]} 32. Rxd6 {[%clk
0:01:39.2]} 32... Ne6 {[%clk 0:00:59.1]} 33. Rf1 {[%clk 0:01:39.7]} 33... a5
{[%clk 0:00:52.6]} 34. h4 {[%clk 0:01:39.8]} 34... g6 {[%clk 0:00:51.3]} 35. f5
{[%clk 0:01:37.8]} 35... gxf5 {[%clk 0:00:50.1]} 36. Rxf5 {[%clk 0:01:38.7]}
36... Re1+ {[%clk 0:00:48.3]} 37. Rf1 {[%clk 0:01:38.1]} 37... Re2 {[%clk
0:00:47.2]} 38. Rf2 {[%clk 0:01:37.9]} 38... Re1+ {[%clk 0:00:46.7]} 39. Kh2
{[%clk 0:01:38.5]} 39... Rc1 {[%clk 0:00:43]} 40. g6 {[%clk 0:01:37.4]} 40...
Kg7 {[%clk 0:00:33.9]} 41. gxf7 {[%clk 0:01:37.3]} 41... Rxf7 {[%clk 0:00:32.2]}
42. Rxf7+ {[%clk 0:01:37.5]} 42... Kxf7 {[%clk 0:00:31.5]} 43. Bd5 {[%clk
0:01:38.1]} 43... Rc2+ {[%clk 0:00:26]} 44. Kg1 {[%clk 0:01:37.9]} 44... Rc1+
{[%clk 0:00:25.7]} 45. Kf2 {[%clk 0:01:38.3]} 45... Rc2+ {[%clk 0:00:24.3]} 46.
Ke1 {[%clk 0:01:38.6]} 1-0

[Event "*** Titled Tuesday Blitz"]
[Site "Chess.com"]
[Date "2021.02.16"]
[Round "2"]
[White "Msb2"]
[Black "Deepweb2020"]
[Result "1-0"]
[WhiteElo "2850"]
[BlackElo "2525"]
[TimeControl "180+1"]
[EndTime "10:17:52 PST"]
[Termination "Msb2 won by resignation"]

1. d4 {[%clk 0:03:00.9]} 1... Nf6 {[%clk 0:02:58.8]} 2. Nf3 {[%clk 0:03:00.3]}
2... e6 {[%clk 0:02:58.6]} 3. e3 {[%clk 0:03:00.6]} 3... b6 {[%clk 0:02:57.4]}
4. Bd3 {[%clk 0:03:01]} 4... Bb7 {[%clk 0:02:57.5]} 5. O-O {[%clk 0:03:01.6]}
5... Be7 {[%clk 0:02:55.7]} 6. c4 {[%clk 0:03:01.8]} 6... O-O {[%clk 0:02:54.7]}
7. Nc3 {[%clk 0:03:01.7]} 7... c5 {[%clk 0:02:52]} 8. d5 {[%clk 0:03:01.1]} 8...
exd5 {[%clk 0:02:52.1]} 9. cxd5 {[%clk 0:03:00.2]} 9... Nxd5 {[%clk 0:02:42.2]}
10. Nxd5 {[%clk 0:02:53.2]} 10... Bxd5 {[%clk 0:02:43.1]} 11. Bxh7+ {[%clk
0:02:53.2]} 11... Kxh7 {[%clk 0:02:44]} 12. Qxd5 {[%clk 0:02:53.6]} 12... Nc6
{[%clk 0:02:44.9]} 13. e4 {[%clk 0:02:48.2]} 13... Nb4 {[%clk 0:02:30.6]} 14.
Qh5+ {[%clk 0:02:39.1]} 14... Kg8 {[%clk 0:02:30.6]} 15. Bg5 {[%clk 0:02:39.7]}
15... f6 {[%clk 0:02:05.8]} 16. Bd2 {[%clk 0:02:35.9]} 16... Nc6 {[%clk
0:01:47.2]} 17. Rad1 {[%clk 0:02:32.5]} 17... Qe8 {[%clk 0:01:39.8]} 18. Qg4
{[%clk 0:02:27.3]} 18... Rd8 {[%clk 0:01:20.5]} 19. Bc3 {[%clk 0:02:24.4]} 19...
d6 {[%clk 0:01:16.8]} 20. Nh4 {[%clk 0:02:12.6]} 20... Ne5 {[%clk 0:01:11.8]}
21. Bxe5 {[%clk 0:01:50.9]} 21... fxe5 {[%clk 0:01:01.6]} 22. Nf5 {[%clk
0:01:49.6]} 22... Bf6 {[%clk 0:00:58.4]} 23. Nxd6 {[%clk 0:01:45]} 23... Qd7
{[%clk 0:00:53.6]} 24. Nf5 {[%clk 0:01:44.7]} 24... Qb5 {[%clk 0:00:45.2]} 25.
b3 {[%clk 0:01:15.4]} 25... c4 {[%clk 0:00:41.7]} 26. Nd6 {[%clk 0:01:13.3]}
26... Rxd6 {[%clk 0:00:38.2]} 27. Rxd6 {[%clk 0:01:12.4]} 27... cxb3 {[%clk
0:00:39.1]} 28. Qe6+ {[%clk 0:01:11.7]} 28... Kh8 {[%clk 0:00:39.4]} 29. axb3
{[%clk 0:01:08.7]} 29... Re8 {[%clk 0:00:28.9]} 30. Qh3+ {[%clk 0:01:04.5]}
30... Kg8 {[%clk 0:00:28]} 31. Rfd1 {[%clk 0:01:05.1]} 31... Qxb3 {[%clk
0:00:26.8]} 32. Qxb3+ {[%clk 0:01:03.1]} 1-0

[Event "*** Titled Tuesday Blitz"]
[Site "Chess.com"]
[Date "2021.02.16"]
[Round "2"]
[White "Redzishchess"]
[Black "azikom"]
[Result "0-1"]
[WhiteElo "2343"]
[BlackElo "2643"]
[TimeControl "180+1"]
[EndTime "10:17:55 PST"]
[Termination "azikom won by resignation"]

1. e4 {[%clk 0:03:00.9]} 1... c5 {[%clk 0:02:58.2]} 2. Nf3 {[%clk 0:03:00.9]}
2... d6 {[%clk 0:02:53.2]} 3. d4 {[%clk 0:03:01.2]} 3... cxd4 {[%clk 0:02:50.4]}
4. Nxd4 {[%clk 0:03:02.1]} 4... Nf6 {[%clk 0:02:50.9]} 5. Nc3 {[%clk 0:03:02.5]}
5... a6 {[%clk 0:02:51.6]} 6. Bg5 {[%clk 0:03:02.8]} 6... e6 {[%clk 0:02:51.3]}
7. f4 {[%clk 0:03:03.3]} 7... Nbd7 {[%clk 0:02:51.9]} 8. Qf3 {[%clk 0:03:00.9]}
8... Be7 {[%clk 0:02:52]} 9. O-O-O {[%clk 0:02:59.9]} 9... Qc7 {[%clk
0:02:52.2]} 10. f5 {[%clk 0:02:01.6]} 10... e5 {[%clk 0:02:50.7]} 11. Nde2
{[%clk 0:01:45.9]} 11... b5 {[%clk 0:02:47.9]} 12. Bxf6 {[%clk 0:01:46.2]} 12...
Nxf6 {[%clk 0:02:47.3]} 13. Nd5 {[%clk 0:01:45.3]} 13... Nxd5 {[%clk 0:02:46.6]}
14. exd5 {[%clk 0:01:42.4]} 14... Bg5+ {[%clk 0:02:40.3]} 15. Kb1 {[%clk
0:01:41.1]} 15... Qc5 {[%clk 0:02:21.3]} 16. Nc3 {[%clk 0:01:20.6]} 16... Qe3
{[%clk 0:02:16.6]} 17. Qxe3 {[%clk 0:00:50.8]} 17... Bxe3 {[%clk 0:02:15.6]} 18.
Bd3 {[%clk 0:00:51.7]} 18... Bd4 {[%clk 0:02:11.5]} 19. Ne4 {[%clk 0:00:49.9]}
19... Ke7 {[%clk 0:02:10.9]} 20. c3 {[%clk 0:00:48.1]} 20... Bb6 {[%clk
0:02:08.3]} 21. g4 {[%clk 0:00:41.4]} 21... h5 {[%clk 0:02:06.4]} 22. h3 {[%clk
0:00:24.1]} 22... Bb7 {[%clk 0:02:05.4]} 23. f6+ {[%clk 0:00:19.4]} 23... gxf6
{[%clk 0:02:03.3]} 24. Rhf1 {[%clk 0:00:19.7]} 24... Rh6 {[%clk 0:01:57.3]} 25.
g5 {[%clk 0:00:16.9]} 25... fxg5 {[%clk 0:01:56.4]} 26. Nxg5 {[%clk 0:00:17.8]}
26... Rf8 {[%clk 0:01:53.3]} 27. h4 {[%clk 0:00:15.1]} 27... Bxd5 {[%clk
0:01:46.8]} 28. Bf5 {[%clk 0:00:15.4]} 28... Bc4 {[%clk 0:01:45.3]} 29. Rfe1
{[%clk 0:00:10.7]} 29... Rf6 {[%clk 0:01:42.8]} 30. Bh3 {[%clk 0:00:05.7]} 30...
Rf4 {[%clk 0:01:36.2]} 31. Rd2 {[%clk 0:00:02]} 31... Rxh4 {[%clk 0:01:32.8]}
32. Bf5 {[%clk 0:00:02.2]} 32... Rf4 {[%clk 0:01:31.6]} 33. Bh3 {[%clk
0:00:01.8]} 33... Rf2 {[%clk 0:01:29.2]} 34. Nh7 {[%clk 0:00:01.7]} 34... Rxd2
{[%clk 0:01:28.7]} 0-1

[Event "*** Titled Tuesday Blitz"]
[Site "Chess.com"]
[Date "2021.02.16"]
[Round "2"]
[White "Khnykin_Nikolay"]
[Black "ljuks68"]
[Result "0-1"]
[WhiteElo "2081"]
[BlackElo "2392"]
[TimeControl "180+1"]
[EndTime "10:17:55 PST"]
[Termination "ljuks68 won on time"]

1. d4 {[%clk 0:03:00.9]} 1... d5 {[%clk 0:02:50.9]} 2. Nc3 {[%clk 0:03:00]} 2...
Nf6 {[%clk 0:02:49]} 3. Bf4 {[%clk 0:03:00.3]} 3... Bf5 {[%clk 0:02:43.9]} 4. e3
{[%clk 0:03:00.3]} 4... e6 {[%clk 0:02:44.2]} 5. f3 {[%clk 0:02:59.8]} 5... Bb4
{[%clk 0:02:43.2]} 6. Qd2 {[%clk 0:02:56.5]} 6... Nbd7 {[%clk 0:02:32.5]} 7. a3
{[%clk 0:02:55.4]} 7... Ba5 {[%clk 0:02:32.5]} 8. b4 {[%clk 0:02:52.6]} 8... Bb6
{[%clk 0:02:32.9]} 9. g4 {[%clk 0:02:50.7]} 9... Bg6 {[%clk 0:02:32.1]} 10. h4
{[%clk 0:02:49.4]} 10... h6 {[%clk 0:02:28.8]} 11. Nge2 {[%clk 0:02:37.3]} 11...
a5 {[%clk 0:02:27.9]} 12. b5 {[%clk 0:02:29.2]} 12... a4 {[%clk 0:02:27.7]} 13.
Bh3 {[%clk 0:02:20.9]} 13... c5 {[%clk 0:02:23]} 14. bxc6 {[%clk 0:02:19.1]}
14... bxc6 {[%clk 0:02:23.2]} 15. O-O {[%clk 0:02:17.2]} 15... c5 {[%clk
0:02:23.1]} 16. Rab1 {[%clk 0:02:08.6]} 16... cxd4 {[%clk 0:02:19.7]} 17. Nxd4
{[%clk 0:02:07.6]} 17... Rc8 {[%clk 0:02:07.9]} 18. h5 {[%clk 0:01:48.8]} 18...
Bh7 {[%clk 0:01:56.5]} 19. Bg3 {[%clk 0:01:07.3]} 19... Ba5 {[%clk 0:01:44.7]}
20. Ndb5 {[%clk 0:01:03.8]} 20... O-O {[%clk 0:01:42.2]} 21. Qd4 {[%clk
0:00:44]} 21... e5 {[%clk 0:01:36.4]} 22. Bxe5 {[%clk 0:00:40.9]} 22... Nxe5
{[%clk 0:01:36.4]} 23. Qxe5 {[%clk 0:00:40.3]} 23... Re8 {[%clk 0:01:36.7]} 24.
Qd4 {[%clk 0:00:38.1]} 24... Bb6 {[%clk 0:01:35.4]} 25. Qd1 {[%clk 0:00:32.4]}
25... Rxe3 {[%clk 0:01:34.1]} 26. Kg2 {[%clk 0:00:28.9]} 26... Rexc3 {[%clk
0:01:33.8]} 27. Nxc3 {[%clk 0:00:27.9]} 27... Rxc3 {[%clk 0:01:34.1]} 28. Re1
{[%clk 0:00:18.2]} 28... Rxc2+ {[%clk 0:01:28.7]} 29. Kh1 {[%clk 0:00:11.7]}
29... Qd6 {[%clk 0:01:22.6]} 30. Re2 {[%clk 0:00:03.5]} 30... Rxe2 {[%clk
0:01:21.1]} 31. Qxe2 {[%clk 0:00:03.1]} 31... Bxb1 {[%clk 0:01:20.8]} 0-1

[Event "*** Titled Tuesday Blitz"]
[Site "Chess.com"]
[Date "2021.02.16"]
[Round "2"]
[White "Skatchkov_V"]
[Black "KuzubovYuriy"]
[Result "0-1"]
[WhiteElo "2514"]
[BlackElo "2832"]
[TimeControl "180+1"]
[EndTime "10:17:56 PST"]
[Termination "KuzubovYuriy won by resignation"]

1. d4 {[%clk 0:02:59.5]} 1... Nf6 {[%clk 0:02:58.8]} 2. c4 {[%clk 0:02:59.7]}
2... e6 {[%clk 0:02:59.4]} 3. Nf3 {[%clk 0:03:00.1]} 3... d5 {[%clk 0:02:59.6]}
4. g3 {[%clk 0:02:59.4]} 4... dxc4 {[%clk 0:02:56.8]} 5. Bg2 {[%clk 0:02:59.7]}
5... Be7 {[%clk 0:02:57]} 6. O-O {[%clk 0:02:59.8]} 6... O-O {[%clk 0:02:57.7]}
7. Ne5 {[%clk 0:02:59.7]} 7... Nc6 {[%clk 0:02:56.4]} 8. Bxc6 {[%clk 0:02:59.8]}
8... bxc6 {[%clk 0:02:57.3]} 9. Nxc6 {[%clk 0:03:00.3]} 9... Qe8 {[%clk
0:02:58]} 10. Nxe7+ {[%clk 0:03:01.2]} 10... Qxe7 {[%clk 0:02:58.9]} 11. Qa4
{[%clk 0:03:01.9]} 11... c5 {[%clk 0:02:56.2]} 12. Qxc4 {[%clk 0:02:57.6]} 12...
cxd4 {[%clk 0:02:56.2]} 13. Qxd4 {[%clk 0:02:58.5]} 13... e5 {[%clk 0:02:56.6]}
14. Qh4 {[%clk 0:02:58.6]} 14... h6 {[%clk 0:02:52]} 15. Nc3 {[%clk 0:02:58.3]}
15... Rb8 {[%clk 0:02:50.8]} 16. Ne4 {[%clk 0:02:32.4]} 16... Rb6 {[%clk
0:02:43.9]} 17. Be3 {[%clk 0:02:29.4]} 17... g5 {[%clk 0:02:14.2]} 18. Nxf6+
{[%clk 0:01:30.6]} 18... Rxf6 {[%clk 0:02:01.2]} 19. Qc4 {[%clk 0:01:30]} 19...
Qb7 {[%clk 0:01:59.5]} 20. h4 {[%clk 0:01:20.7]} 20... Bh3 {[%clk 0:01:57.8]}
21. f3 {[%clk 0:01:14.5]} 21... Rc8 {[%clk 0:01:53.8]} 22. Qa4 {[%clk
0:00:52.8]} 22... Bxf1 {[%clk 0:01:51.2]} 23. Rxf1 {[%clk 0:00:53.7]} 23... gxh4
{[%clk 0:01:38.4]} 24. Qxh4 {[%clk 0:00:52.7]} 24... Rg6 {[%clk 0:01:38.7]} 25.
Bxh6 {[%clk 0:00:33.9]} 25... Qxb2 {[%clk 0:01:35.8]} 26. Rf2 {[%clk 0:00:14.2]}
26... Qd4 {[%clk 0:01:30.6]} 27. Qh3 {[%clk 0:00:10.1]} 27... Rc2 {[%clk
0:01:25.1]} 28. Kg2 {[%clk 0:00:08.8]} 28... Qd1 {[%clk 0:01:17.1]} 29. Be3
{[%clk 0:00:02.5]} 0-1

[Event "*** Titled Tuesday Blitz"]
[Site "Chess.com"]
[Date "2021.02.16"]
[Round "2"]
[White "GameOverBro"]
[Black "DarZay"]
[Result "1-0"]
[WhiteElo "2425"]
[BlackElo "2155"]
[TimeControl "180+1"]
[EndTime "10:17:57 PST"]
[Termination "GameOverBro won by resignation"]

1. e4 {[%clk 0:03:00.9]} 1... c5 {[%clk 0:02:59.6]} 2. Ne2 {[%clk 0:03:00.4]}
2... Nc6 {[%clk 0:02:58.1]} 3. Nbc3 {[%clk 0:02:59.5]} 3... Nf6 {[%clk
0:02:56.1]} 4. g3 {[%clk 0:02:59.6]} 4... d5 {[%clk 0:02:49.6]} 5. exd5 {[%clk
0:03:00.5]} 5... Nxd5 {[%clk 0:02:49.1]} 6. Bg2 {[%clk 0:03:01.1]} 6... e6
{[%clk 0:02:48.6]} 7. O-O {[%clk 0:03:00.9]} 7... Be7 {[%clk 0:02:47.9]} 8. d3
{[%clk 0:03:01.2]} 8... O-O {[%clk 0:02:47.1]} 9. Nf4 {[%clk 0:03:01.5]} 9...
Nxc3 {[%clk 0:02:45]} 10. bxc3 {[%clk 0:03:02.4]} 10... Bf6 {[%clk 0:02:42.4]}
11. Bd2 {[%clk 0:03:02.6]} 11... Ne7 {[%clk 0:02:37.3]} 12. Nh5 {[%clk
0:03:00.5]} 12... Ng6 {[%clk 0:02:35.9]} 13. Nxf6+ {[%clk 0:02:57.7]} 13... Qxf6
{[%clk 0:02:35.4]} 14. f4 {[%clk 0:02:57]} 14... e5 {[%clk 0:02:33.2]} 15. fxe5
{[%clk 0:02:41]} 15... Qxe5 {[%clk 0:02:31.4]} 16. Rb1 {[%clk 0:02:41.4]} 16...
Rb8 {[%clk 0:02:30.2]} 17. Qf3 {[%clk 0:02:16.9]} 17... b6 {[%clk 0:02:24.7]}
18. Rbe1 {[%clk 0:02:16.9]} 18... Qd6 {[%clk 0:02:21.1]} 19. Qd5 {[%clk
0:02:01.4]} 19... Qxd5 {[%clk 0:02:18.7]} 20. Bxd5 {[%clk 0:02:02.3]} 20... Bb7
{[%clk 0:02:17.9]} 21. c4 {[%clk 0:01:51]} 21... Bxd5 {[%clk 0:02:09]} 22. cxd5
{[%clk 0:01:51.9]} 22... b5 {[%clk 0:02:00.7]} 23. h4 {[%clk 0:01:48.8]} 23...
Rbd8 {[%clk 0:01:56.2]} 24. h5 {[%clk 0:01:45.9]} 24... Nh8 {[%clk 0:01:56.4]}
25. c4 {[%clk 0:01:44.3]} 25... f6 {[%clk 0:01:44.1]} 26. Re7 {[%clk 0:01:38.7]}
26... Rf7 {[%clk 0:01:43.5]} 27. Rfe1 {[%clk 0:01:38.1]} 27... Kf8 {[%clk
0:01:39.1]} 28. R7e6 {[%clk 0:01:31.6]} 28... Rfd7 {[%clk 0:01:29]} 29. Be3
{[%clk 0:01:20.2]} 29... Rc8 {[%clk 0:01:11.6]} 30. Rc6 {[%clk 0:01:20]} 30...
Rdc7 {[%clk 0:01:01.2]} 31. Bxc5+ {[%clk 0:01:19.8]} 31... Kf7 {[%clk
0:01:01.4]} 32. cxb5 {[%clk 0:01:14.8]} 32... g6 {[%clk 0:00:50.5]} 33. Bxa7
{[%clk 0:01:09.4]} 33... gxh5 {[%clk 0:00:42.7]} 34. Bb6 {[%clk 0:01:09.3]}
34... Rxc6 {[%clk 0:00:42]} 35. bxc6 {[%clk 0:01:08.1]} 35... Ng6 {[%clk
0:00:39.8]} 36. d6 {[%clk 0:01:02.4]} 36... Ne5 {[%clk 0:00:32.2]} 37. d7 {[%clk
0:00:58.7]} 1-0

[Event "*** Titled Tuesday Blitz"]
[Site "Chess.com"]
[Date "2021.02.16"]
[Round "2"]
[White "Evachess2006"]
[Black "Lady_Nika"]
[Result "0-1"]
[WhiteElo "1610"]
[BlackElo "2375"]
[TimeControl "180+1"]
[EndTime "10:17:58 PST"]
[Termination "Lady_Nika won by resignation"]

1. e4 {[%clk 0:03:00.9]} 1... c6 {[%clk 0:02:59.1]} 2. d4 {[%clk 0:02:59.8]}
2... d5 {[%clk 0:02:59.2]} 3. exd5 {[%clk 0:02:59.6]} 3... cxd5 {[%clk
0:02:59.4]} 4. Bd3 {[%clk 0:02:58.8]} 4... Nf6 {[%clk 0:02:58.8]} 5. c3 {[%clk
0:02:57.9]} 5... Nc6 {[%clk 0:02:58.8]} 6. Ne2 {[%clk 0:02:57.1]} 6... Bg4
{[%clk 0:02:58.8]} 7. O-O {[%clk 0:02:55.6]} 7... e6 {[%clk 0:02:58.1]} 8. Bf4
{[%clk 0:02:54.5]} 8... Bd6 {[%clk 0:02:58.1]} 9. Bg3 {[%clk 0:02:52.6]} 9...
O-O {[%clk 0:02:57.6]} 10. Nd2 {[%clk 0:02:51.5]} 10... Re8 {[%clk 0:02:55.2]}
11. Re1 {[%clk 0:02:45.5]} 11... e5 {[%clk 0:02:53.6]} 12. dxe5 {[%clk
0:02:36.8]} 12... Bxe5 {[%clk 0:02:51.4]} 13. Bxe5 {[%clk 0:02:35.3]} 13... Nxe5
{[%clk 0:02:51.3]} 14. Qc2 {[%clk 0:02:21.8]} 14... Qb6 {[%clk 0:02:43.8]} 15.
b3 {[%clk 0:02:04.9]} 15... Rac8 {[%clk 0:02:39.1]} 16. Nf4 {[%clk 0:01:46.9]}
16... d4 {[%clk 0:02:29.7]} 17. Nc4 {[%clk 0:01:35.2]} 17... Nxc4 {[%clk
0:02:27.8]} 18. Bxc4 {[%clk 0:01:32.9]} 18... dxc3 {[%clk 0:02:27.6]} 19. Qxc3
{[%clk 0:01:27.6]} 19... Ne4 {[%clk 0:02:26.4]} 20. Qe3 {[%clk 0:01:22.7]} 20...
Nd6 {[%clk 0:02:02.2]} 21. Qxb6 {[%clk 0:01:18.8]} 21... Rxe1+ {[%clk
0:02:01.2]} 22. Rxe1 {[%clk 0:01:17]} 22... axb6 {[%clk 0:02:01.4]} 23. f3
{[%clk 0:01:04]} 23... Bf5 {[%clk 0:01:58]} 24. Re7 {[%clk 0:00:58.5]} 24...
Nxc4 {[%clk 0:01:57.3]} 25. bxc4 {[%clk 0:00:57.1]} 25... Kf8 {[%clk 0:01:57.4]}
26. Rxb7 {[%clk 0:00:52.6]} 26... Rxc4 {[%clk 0:01:57.3]} 27. Rxb6 {[%clk
0:00:48.6]} 27... Rxf4 {[%clk 0:01:56.8]} 28. Rb8+ {[%clk 0:00:44.7]} 28... Ke7
{[%clk 0:01:56.6]} 29. Ra8 {[%clk 0:00:44.3]} 29... Bd7 {[%clk 0:01:56.7]} 30.
Ra7 {[%clk 0:00:41.1]} 30... Ra4 {[%clk 0:01:56.4]} 31. Rxa4 {[%clk 0:00:38.9]}
31... Bxa4 {[%clk 0:01:56]} 32. Kf2 {[%clk 0:00:39.1]} 32... Ke6 {[%clk
0:01:56.4]} 33. Ke3 {[%clk 0:00:38.7]} 33... g5 {[%clk 0:01:56.7]} 34. Kd4
{[%clk 0:00:35.3]} 34... f5 {[%clk 0:01:56.5]} 35. Kc3 {[%clk 0:00:34.2]} 35...
Ke5 {[%clk 0:01:56.8]} 36. Kb4 {[%clk 0:00:34.3]} 36... Bc6 {[%clk 0:01:56.9]}
37. a4 {[%clk 0:00:22.4]} 37... Kf4 {[%clk 0:01:56.5]} 38. a5 {[%clk 0:00:17.6]}
38... Ke3 {[%clk 0:01:56.2]} 39. a6 {[%clk 0:00:17.6]} 39... Kf2 {[%clk
0:01:55.8]} 40. Kc5 {[%clk 0:00:15.7]} 40... Ba8 {[%clk 0:01:55.6]} 41. a7
{[%clk 0:00:12.5]} 41... Kxg2 {[%clk 0:01:55.8]} 42. Kb6 {[%clk 0:00:10.9]}
42... Bxf3 {[%clk 0:01:55.3]} 43. Kc7 {[%clk 0:00:11]} 43... h5 {[%clk
0:01:55.5]} 44. Kb8 {[%clk 0:00:11]} 44... g4 {[%clk 0:01:55.4]} 45. Kc7 {[%clk
0:00:07.2]} 45... h4 {[%clk 0:01:54.9]} 46. Kd6 {[%clk 0:00:07.7]} 46... Kxh2
{[%clk 0:01:55.3]} 47. Ke5 {[%clk 0:00:07.8]} 47... Be4 {[%clk 0:01:55.7]} 0-1